[Event "DVM U12 2024"]
[Site "Heidelberg"]
[Date "2024.12.28"]
[Round "3"]
[White "Vu, Khoi Nguyen"]
[Black "Akcapinar, Timur"]
[Result "0-1"]
[ECO "B06"]
[WhiteElo "1730"]
[BlackElo "1687"]
[Annotator "NA RC"]
[PlyCount "82"]
[EventDate "2024.12.23"]
[EventType "team-tourn"]
[EventRounds "7"]
[EventCountry "GER"]
[SourceTitle "playchess.com"]
[Source "ChessBase"]
[SourceQuality "1"]
[TimeControl "40/5400+30:1800+30"]

1. e4 {[%emt 0:00:04]} g6 {[%emt 0:00:14]} 2. d4 {[%emt 0:05:12]} Bg7 {[%emt 0:01:18]} 3. Nf3 {[%emt 0:01:13]} d6 {[%emt 0:00:52]} 4. Be3 {[%emt 0:01:58]} Nc6 {[%emt 0:03:51]} 5. Nc3 {[%emt 0:02:07]} Bg4 {[%emt 0:01:40]} 6. Bb5 {[%emt 0:05:21]} a6 {[%emt 0:03:33]} 7. Bxc6+ {[%emt 0:00:10]} bxc6 {[%emt 0:00:06]} 8. h3 {[%emt 0:00:30]} Bxf3 {[%emt 0:04:48]} 9. Qxf3 {[%emt 0:00:09]} Qb8 {[%emt 0:00:52]} 10. Rb1 {[%emt 0:04:48]} c5 {[%emt 0:04:10]} 11. Qd1 {[%emt 0:03:43]} Qb4 {[%emt 0:03:03]} 12. O-O {[%emt 0:11:42]} cxd4 {[%emt 0:00:39]} 13. Nd5 {[%emt 0:00:09]} Qc5 {[%emt 0:01:16]} 14. Bd2 {[%emt 0:10:36]} e6 {[%emt 0:02:41]} 15. Bb4 {[%emt 0:01:27]} Qc6 {[%emt 0:00:09]} 16. Re1 {[%emt 0:01:33]} Qb7 {[%emt 0:02:29]} 17. Bd2 {[%emt 0:06:02]} exd5 {[%emt 0:00:18]} 18. exd5+ {[%emt 0:00:05]} Kd7 {[%emt 0:00:17]} 19. Qg4+ {[%emt 0:00:49]} f5 {[%emt 0:00:09]} 20. Qe2 {[%emt 0:00:09]} Qxd5 {[%emt 0:00:48]} 21. Rbd1 {[%emt 0:02:12]} Qf7 {[%emt 0:03:14]} 22. Bg5 {[%emt 0:00:19]} h6 {[%emt 0:01:07]} 23. Qf3 {[%emt 0:02:02]} Re8 {[%emt 0:01:18]} 24. Bh4 {[%emt 0:00:37]} Nf6 {[%emt 0:00:57]} 25. Qa3 {[%emt 0:00:06]} Qc4 {[%emt 0:03:37]} 26. b4 {[%emt 0:00:14]} Rxe1+ {[%emt 0:00:56]} 27. Rxe1 {[%emt 0:00:01]} Re8 {[%emt 0:01:25]} 28. Rc1 {[%emt 0:00:50]} g5 {[%emt 0:00:58]} 29. Bg3 {[%emt 0:00:01]} Ne4 {[%emt 0:00:31]} 30. Qf3 {[%emt 0:00:26]} f4 {[%emt 0:01:04]} 31. Bh2 {[%emt 0:00:04]} Nd2 {[%emt 0:01:34]} 32. Qg4+ {[%emt 0:00:24]} Qe6 {[%emt 0:00:06]} 33. Qd1 {[%emt 0:00:06]} Qe2 {[%emt 0:00:41]} 34. f3 {[%emt 0:02:04]} Kc6 {[%emt 0:00:56]} 35. Kh1 {[%emt 0:00:04]} Qxd1+ {[%emt 0:00:23]} 36. Rxd1 {[%emt 0:00:02]} Nc4 {[%emt 0:00:08]} 37. Bg1 {[%emt 0:00:18]} Ne3 {[%emt 0:00:14]} 38. Bxe3 {[%emt 0:00:06]} dxe3 {[%emt 0:00:04]} 39. Re1 {[%emt 0:01:30]} e2 {[%emt 0:00:07]} 40. Kg1 {[%emt 0:00:19]} Bc3 {[%emt 0:00:05]} 41. Rd1 {[%emt 0:30:10]} exd1=Q+ {[%emt 0:30:12]} 0-1

[Event "DVM U12 2024"]
[Site "Heidelberg"]
[Date "2024.12.28"]
[Round "3"]
[White "Sun, Christopher"]
[Black "Boroshnev, Dmytro"]
[Result "1/2-1/2"]
[ECO "B22"]
[WhiteElo "1723"]
[BlackElo "1627"]
[Annotator "NA RC"]
[PlyCount "45"]
[EventDate "2024.12.23"]
[EventType "team-tourn"]
[EventRounds "7"]
[EventCountry "GER"]
[SourceTitle "playchess.com"]
[Source "ChessBase"]
[SourceQuality "1"]
[TimeControl "40/5400+30:1800+30"]

1. e4 {[%emt 0:00:19]} c5 {[%emt 0:00:08]} 2. c3 {[%emt 0:00:04]} e6 {[%emt 0:03:37]} 3. d4 {[%emt 0:00:12]} cxd4 {[%emt 0:00:08]} 4. cxd4 {[%emt 0:00:03]} d5 {[%emt 0:00:09]} 5. exd5 {[%emt 0:00:05]} exd5 {[%emt 0:00:06]} 6. Nf3 {[%emt 0:00:13]} Nc6 {[%emt 0:07:51]} 7. h3 {[%emt 0:01:06]} h6 {[%emt 0:01:11]} 8. Bd3 {[%emt 0:00:26]} Bd6 {[%emt 0:00:14]} 9. Nc3 {[%emt 0:00:37]} Nge7 {[%emt 0:02:06]} 10. O-O {[%emt 0:00:13]} O-O {[%emt 0:02:20]} 11. Be3 {[%emt 0:01:49]} Bb8 {[%emt 0:26:59]} 12. Qd2 {[%emt 0:04:34]} Qd6 {[%emt 0:08:52]} 13. Rfe1 {[%emt 0:06:52]} Qf6 {[%emt 0:01:20]} 14. Rac1 {[%emt 0:02:44]} a6 {[%emt 0:12:01]} 15. Qd1 {[%emt 0:03:24]} Bd6 {[%emt 0:01:01]} 16. Na4 {[%emt 0:06:02]} Be6 {[%emt 0:02:25]} 17. Nc5 {[%emt 0:01:01]} Bxc5 {[%emt 0:00:06]} 18. Rxc5 {[%emt 0:01:00]} Nf5 {[%emt 0:02:12]} 19. Bxf5 {[%emt 0:01:56]} Qxf5 {[%emt 0:00:50]} 20. Qd2 {[%emt 0:02:44]} Qg6 {[%emt 0:02:08]} 21. Kh2 {[%emt 0:00:51]} Rfc8 {[%emt 0:00:42]} 22. Rec1 {[%emt 0:01:04]} Qf6 {[%emt 0:01:08]} 23. Bf4 {[%emt 0:03:49]} 1/2-1/2

[Event "DVM U12 2024"]
[Site "Heidelberg"]
[Date "2024.12.28"]
[Round "3"]
[White "Heins, Simon"]
[Black "Beier, Martin"]
[Result "0-1"]
[ECO "C02"]
[WhiteElo "1708"]
[BlackElo "1705"]
[Annotator "NA RC"]
[PlyCount "100"]
[EventDate "2024.12.23"]
[EventType "team-tourn"]
[EventRounds "7"]
[EventCountry "GER"]
[SourceTitle "playchess.com"]
[Source "ChessBase"]
[SourceQuality "1"]
[TimeControl "40/5400+30:1800+30"]

1. e4 {[%emt 0:00:03]} e6 {[%emt 0:00:03]} 2. d4 {[%emt 0:00:07]} d5 {[%emt 0:00:04]} 3. e5 {[%emt 0:00:08]} c5 {[%emt 0:00:05]} 4. c3 {[%emt 0:00:07]} Nc6 {[%emt 0:00:06]} 5. Nf3 {[%emt 0:00:04]} Qb6 {[%emt 0:00:17]} 6. a3 {[%emt 0:00:07]} Bd7 {[%emt 0:01:01]} 7. b4 {[%emt 0:00:15]} cxd4 {[%emt 0:00:32]} 8. cxd4 {[%emt 0:00:06]} a6 {[%emt 0:00:28]} 9. Be2 {[%emt 0:00:21]} Nge7 {[%emt 0:00:14]} 10. Bb2 {[%emt 0:00:37]} Nf5 {[%emt 0:00:35]} 11. O-O {[%emt 0:00:55]} Na7 {[%emt 0:01:41]} 12. Nc3 {[%emt 0:10:41]} Nb5 {[%emt 0:00:41]} 13. Na4 {[%emt 0:01:54]} Qd8 {[%emt 0:02:21]} 14. Nc5 {[%emt 0:02:33]} b6 {[%emt 0:00:58]} 15. Nxd7 {[%emt 0:00:31]} Qxd7 {[%emt 0:00:09]} 16. a4 {[%emt 0:02:22]} Nc7 {[%emt 0:01:28]} 17. Qb3 {[%emt 0:01:19]} Be7 {[%emt 0:00:57]} 18. b5 {[%emt 0:00:50]} axb5 {[%emt 0:02:26]} 19. axb5 {[%emt 0:00:14]} O-O {[%emt 0:00:38]} 20. Nd2 {[%emt 0:02:06]} f6 {[%emt 0:03:51]} 21. f4 {[%emt 0:01:14]} Rfc8 {[%emt 0:14:44]} 22. g4 {[%emt 0:08:32]} Nh4 {[%emt 0:08:10]} 23. Qg3 {[%emt 0:10:32]} f5 {[%emt 0:06:34]} 24. g5 {[%emt 0:01:59]} Ng6 {[%emt 0:02:24]} 25. Qb3 {[%emt 0:00:32]} Qd8 {[%emt 0:02:15]} 26. Kh1 {[%emt 0:07:38]} Nxf4 {[%emt 0:01:35]} 27. Rxf4 {[%emt 0:01:04]} Bxg5 {[%emt 0:00:06]} 28. Qg3 {[%emt 0:00:21]} Bxf4 {[%emt 0:00:42]} 29. Qxf4 {[%emt 0:00:03]} Rxa1+ {[%emt 0:00:14]} 30. Bxa1 {[%emt 0:00:08]} Nxb5 {[%emt 0:01:01]} 31. Nb3 {[%emt 0:09:48]} Nc3 {[%emt 0:02:25]} 32. Bf1 {[%emt 0:04:57]} Ne4 {[%emt 0:01:17]} 33. Nd2 {[%emt 0:02:39]} Qg5 {[%emt 0:01:40]} 34. Qxg5 {[%emt 0:00:47]} Nxg5 {[%emt 0:00:07]} 35. h4 {[%emt 0:03:16]} Ne4 {[%emt 0:00:20]} 36. Nxe4 {[%emt 0:00:26]} dxe4 {[%emt 0:01:19]} 37. Kg1 {[%emt 0:09:05]} Kf7 {[%emt 0:00:40]} 38. d5 {[%emt 0:05:49]} exd5 {[%emt 0:01:08]} 39. e6+ {[%emt 0:00:12]} Kxe6 {[%emt 0:00:16]} 40. Bd4 {[%emt 0:00:19]} g6 {[%emt 0:00:41]} 41. Bxb6 {[%emt 0:30:10]} Ke5 {[%emt 0:00:03]} 42. Bb5 {[%emt 0:01:03]} Kf4 {[%emt 0:30:47]} 43. Bd7 {[%emt 0:00:18]} Rc2 {[%emt 0:00:27]} 44. Bd8 {[%emt 0:00:32]} Kg3 {[%emt 0:00:47]} 45. Kf1 {[%emt 0:00:21]} d4 {[%emt 0:00:40]} 46. h5 {[%emt 0:00:27]} Kf3 {[%emt 0:01:26]} 47. Ke1 {[%emt 0:00:33]} d3 {[%emt 0:00:29]} 48. hxg6 {[%emt 0:00:14]} e3 {[%emt 0:01:04]} 49. Kd1 {[%emt 0:01:18]} e2+ {[%emt 0:00:22]} 50. Ke1 {[%emt 0:00:06]} d2# {[%emt 0:00:09]} 0-1

[Event "DVM U12 2024"]
[Site "Heidelberg"]
[Date "2024.12.28"]
[Round "3"]
[White "Mi Plaza, Luis Leo Manuel"]
[Black "Martin Fernandez, Felix"]
[Result "0-1"]
[ECO "B82"]
[WhiteElo "1702"]
[BlackElo "1624"]
[Annotator "NA RC"]
[PlyCount "68"]
[EventDate "2024.12.23"]
[EventType "team-tourn"]
[EventRounds "7"]
[EventCountry "GER"]
[SourceTitle "playchess.com"]
[Source "ChessBase"]
[SourceQuality "1"]
[TimeControl "40/5400+30:1800+30"]

1. e4 {[%emt 0:00:08]} c5 {[%emt 0:00:03]} 2. Nf3 {[%emt 0:00:13]} d6 {[%emt 0:00:07]} 3. d4 {[%emt 0:00:21]} cxd4 {[%emt 0:00:09]} 4. Nxd4 {[%emt 0:00:14]} Nf6 {[%emt 0:00:07]} 5. Nc3 {[%emt 0:00:45]} Nc6 {[%emt 0:00:08]} 6. f4 {[%emt 0:03:15]} e6 {[%emt 0:02:11]} 7. Bb5 {[%emt 0:04:03]} Bd7 {[%emt 0:00:43]} 8. Be3 {[%emt 0:01:40]} Be7 {[%emt 0:03:06]} 9. Qe2 {[%emt 0:02:32]} a6 {[%emt 0:02:56]} 10. Nxc6 {[%emt 0:04:23]} bxc6 {[%emt 0:05:04]} 11. Bxa6 {[%emt 0:05:33]} Nxe4 {[%emt 0:00:29]} 12. Nxe4 {[%emt 0:02:23]} Qa5+ {[%emt 0:00:34]} 13. Bd2 {[%emt 0:00:52]} Qxa6 {[%emt 0:00:08]} 14. Qxa6 {[%emt 0:00:18]} Rxa6 {[%emt 0:00:05]} 15. Bc3 {[%emt 0:00:46]} f6 {[%emt 0:01:30]} 16. a3 {[%emt 0:03:23]} Kf7 {[%emt 0:03:26]} 17. O-O-O {[%emt 0:05:40]} c5 {[%emt 0:02:31]} 18. Rd2 {[%emt 0:03:10]} Bb5 {[%emt 0:05:52]} 19. Ng3 {[%emt 0:11:03]} Ra4 {[%emt 0:05:06]} 20. f5 {[%emt 0:02:48]} e5 {[%emt 0:00:57]} 21. Re1 {[%emt 0:01:10]} Bc6 {[%emt 0:00:52]} 22. Rde2 {[%emt 0:02:18]} d5 {[%emt 0:05:07]} 23. Bd2 {[%emt 0:05:26]} Rb8 {[%emt 0:02:20]} 24. Rf1 {[%emt 0:05:14]} Bb5 {[%emt 0:02:42]} 25. Rf3 {[%emt 0:01:52]} Bxe2 {[%emt 0:00:19]} 26. Nxe2 {[%emt 0:00:11]} d4 {[%emt 0:06:56]} 27. c3 {[%emt 0:02:13]} e4 {[%emt 0:01:58]} 28. Rf4 {[%emt 0:00:48]} d3 {[%emt 0:01:47]} 29. Ng3 {[%emt 0:00:48]} c4 {[%emt 0:03:36]} 30. Rxe4 {[%emt 0:03:59]} Rxa3 {[%emt 0:01:08]} 31. bxa3 {[%emt 0:00:36]} Bxa3+ {[%emt 0:00:34]} 32. Kd1 {[%emt 0:00:33]} Rb1+ {[%emt 0:00:10]} 33. Bc1 {[%emt 0:00:15]} Bxc1 {[%emt 0:00:21]} 34. Ke1 {[%emt 0:08:00]} Be3# {[%emt 0:00:10]} 0-1

[Event "DVM U12 2024"]
[Site "Heidelberg"]
[Date "2024.12.28"]
[Round "3"]
[White "Botvinnik, Julius"]
[Black "Svanidze, Alexander"]
[Result "1-0"]
[ECO "E27"]
[WhiteElo "1700"]
[BlackElo "1615"]
[Annotator "NA RC"]
[PlyCount "85"]
[EventDate "2024.12.23"]
[EventType "team-tourn"]
[EventRounds "7"]
[EventCountry "GER"]
[SourceTitle "playchess.com"]
[Source "ChessBase"]
[SourceQuality "1"]
[TimeControl "40/5400+30:1800+30"]

1. d4 {[%emt 0:00:09]} Nf6 {[%emt 0:00:05]} 2. c4 {[%emt 0:00:17]} e6 {[%emt 0:00:06]} 3. Nc3 {[%emt 0:00:10]} Bb4 {[%emt 0:00:06]} 4. a3 {[%emt 0:00:28]} Bxc3+ {[%emt 0:00:09]} 5. bxc3 {[%emt 0:00:05]} O-O {[%emt 0:00:38]} 6. Nf3 {[%emt 0:00:22]} b6 {[%emt 0:00:24]} 7. Bg5 {[%emt 0:01:22]} Bb7 {[%emt 0:00:59]} 8. e3 {[%emt 0:02:41]} d5 {[%emt 0:01:57]} 9. cxd5 {[%emt 0:03:26]} exd5 {[%emt 0:00:09]} 10. Bd3 {[%emt 0:02:33]} Re8 {[%emt 0:03:53]} 11. Ne5 {[%emt 0:01:57]} Qd6 {[%emt 0:08:08]} 12. Bxf6 {[%emt 0:05:02]} Qxf6 {[%emt 0:04:05]} 13. O-O {[%emt 0:05:09]} Qe6 {[%emt 0:07:34]} 14. Qh5 {[%emt 0:05:01]} g6 {[%emt 0:05:28]} 15. Qh4 {[%emt 0:04:42]} Nd7 {[%emt 0:13:03]} 16. f4 {[%emt 0:06:54]} f5 {[%emt 0:06:32]} 17. Rf3 {[%emt 0:03:16]} Nf6 {[%emt 0:07:21]} 18. Qg5 {[%emt 0:03:22]} Ne4 {[%emt 0:06:03]} 19. Bxe4 {[%emt 0:01:55]} dxe4 {[%emt 0:00:09]} 20. Rg3 {[%emt 0:00:26]} Qe7 {[%emt 0:06:09]} 21. Qxf5 {[%emt 0:00:32]} Qf8 {[%emt 0:13:46]} 22. Qg5 {[%emt 0:04:35]} Bc8 {[%emt 0:02:35]} 23. Rf1 {[%emt 0:01:32]} Bf5 {[%emt 0:00:29]} 24. h4 {[%emt 0:00:38]} Re6 {[%emt 0:00:48]} 25. h5 {[%emt 0:00:44]} Kg7 {[%emt 0:01:14]} 26. hxg6 {[%emt 0:01:24]} hxg6 {[%emt 0:00:17]} 27. Kf2 {[%emt 0:01:17]} Qf6 {[%emt 0:01:55]} 28. Rh1 {[%emt 0:00:57]} Rh8 {[%emt 0:01:16]} 29. Rxh8 {[%emt 0:01:35]} Kxh8 {[%emt 0:00:20]} 30. Qh6+ {[%emt 0:00:52]} Kg8 {[%emt 0:00:08]} 31. Rg5 {[%emt 0:00:36]} Rxe5 {[%emt 0:05:19]} 32. fxe5 {[%emt 0:01:07]} Qe6 {[%emt 0:00:10]} 33. g4 {[%emt 0:02:08]} Qa2+ {[%emt 0:00:59]} 34. Kg3 {[%emt 0:00:25]} Qe2 {[%emt 0:03:02]} 35. Rxg6+ {[%emt 0:03:01]} Bxg6 {[%emt 0:00:20]} 36. Qxg6+ {[%emt 0:00:06]} Kh8 {[%emt 0:00:19]} 37. Qxe4 {[%emt 0:01:11]} Qe1+ {[%emt 0:00:05]} 38. Kf4 {[%emt 0:00:20]} Kg7 {[%emt 0:00:15]} 39. Kg5 {[%emt 0:00:45]} Qxc3 {[%emt 0:00:26]} 40. Qg6+ {[%emt 0:00:19]} Kf8 {[%emt 0:00:12]} 41. Qf6+ {[%emt 0:30:21]} Kg8 {[%emt 0:30:34]} 42. Qe6+ {[%emt 0:02:53]} Kh8 {[%emt 0:00:16]} 43. Kf6 {[%emt 0:00:39]} 1-0

[Event "DVM U12 2024"]
[Site "Heidelberg"]
[Date "2024.12.28"]
[Round "3"]
[White "Tu, Tiffany"]
[Black "Thoms, Eric"]
[Result "1-0"]
[ECO "C78"]
[WhiteElo "1670"]
[BlackElo "1666"]
[Annotator "NA RC"]
[PlyCount "67"]
[EventDate "2024.12.23"]
[EventType "team-tourn"]
[EventRounds "7"]
[EventCountry "GER"]
[SourceTitle "playchess.com"]
[Source "ChessBase"]
[SourceQuality "1"]
[TimeControl "40/5400+30:1800+30"]

1. e4 {[%emt 0:00:03]} e5 {[%emt 0:00:09]} 2. Nf3 {[%emt 0:00:10]} Nc6 {[%emt 0:00:11]} 3. Bb5 {[%emt 0:00:13]} a6 {[%emt 0:00:08]} 4. Ba4 {[%emt 0:00:05]} Nf6 {[%emt 0:00:07]} 5. d3 {[%emt 0:00:10]} b5 {[%emt 0:00:26]} 6. Bb3 {[%emt 0:00:09]} Bc5 {[%emt 0:00:10]} 7. c3 {[%emt 0:00:11]} d6 {[%emt 0:00:13]} 8. O-O {[%emt 0:00:22]} O-O {[%emt 0:00:26]} 9. Nbd2 {[%emt 0:00:17]} Bg4 {[%emt 0:01:54]} 10. h3 {[%emt 0:00:15]} Bh5 {[%emt 0:00:18]} 11. Re1 {[%emt 0:00:30]} Ba7 {[%emt 0:00:59]} 12. Nf1 {[%emt 0:00:17]} h6 {[%emt 0:00:28]} 13. Ng3 {[%emt 0:00:15]} Bg6 {[%emt 0:00:09]} 14. Nh4 {[%emt 0:03:42]} Bh7 {[%emt 0:09:45]} 15. Nhf5 {[%emt 0:00:57]} Ne7 {[%emt 0:01:53]} 16. Nxh6+ {[%emt 0:12:25]} gxh6 {[%emt 0:00:10]} 17. Bxh6 {[%emt 0:00:20]} Qd7 {[%emt 0:06:02]} 18. Qf3 {[%emt 0:02:01]} Nf5 {[%emt 0:05:02]} 19. Nxf5 {[%emt 0:01:23]} Bxf5 {[%emt 0:00:21]} 20. exf5 {[%emt 0:00:36]} Kh7 {[%emt 0:01:48]} 21. Bxf8 {[%emt 0:01:29]} Rxf8 {[%emt 0:00:09]} 22. g4 {[%emt 0:02:22]} Rg8 {[%emt 0:00:25]} 23. Kh2 {[%emt 0:02:34]} c6 {[%emt 0:00:30]} 24. Qg3 {[%emt 0:00:30]} Kg7 {[%emt 0:01:35]} 25. Qh4 {[%emt 0:03:32]} d5 {[%emt 0:00:29]} 26. Qg5+ {[%emt 0:00:51]} Kf8 {[%emt 0:00:38]} 27. Qxf6 {[%emt 0:02:26]} Bxf2 {[%emt 0:01:11]} 28. Re2 {[%emt 0:00:11]} Bb6 {[%emt 0:00:13]} 29. Rae1 {[%emt 0:01:26]} Bc7 {[%emt 0:00:25]} 30. Kh1 {[%emt 0:01:02]} c5 {[%emt 0:01:51]} 31. Qh6+ {[%emt 0:06:56]} Ke7 {[%emt 0:02:42]} 32. Rxe5+ {[%emt 0:00:57]} Bxe5 {[%emt 0:00:27]} 33. Rxe5+ {[%emt 0:00:05]} Kd8 {[%emt 0:00:10]} 34. Rxd5 {[%emt 0:00:59]} 1-0

[Event "DVM U12 2024"]
[Site "Heidelberg"]
[Date "2024.12.28"]
[Round "3"]
[White "Heidtkamp, Anna"]
[Black "Tryk, Paul-Luca"]
[Result "1-0"]
[ECO "C00"]
[WhiteElo "1663"]
[BlackElo "1777"]
[Annotator "NA RC"]
[PlyCount "141"]
[EventDate "2024.12.23"]
[EventType "team-tourn"]
[EventRounds "7"]
[EventCountry "GER"]
[SourceTitle "playchess.com"]
[Source "ChessBase"]
[SourceQuality "1"]
[TimeControl "40/5400+30:1800+30"]

1. e4 {[%emt 0:00:02]} e6 {[%emt 0:00:28]} 2. d3 {[%emt 0:00:05]} d5 {[%emt 0:00:24]} 3. Nd2 {[%emt 0:00:05]} c5 {[%emt 0:01:12]} 4. Ngf3 {[%emt 0:00:08]} Nf6 {[%emt 0:02:13]} 5. g3 {[%emt 0:00:11]} Nc6 {[%emt 0:02:04]} 6. Bg2 {[%emt 0:00:28]} Be7 {[%emt 0:03:36]} 7. O-O {[%emt 0:00:11]} O-O {[%emt 0:00:30]} 8. Re1 {[%emt 0:00:15]} a6 {[%emt 0:10:26]} 9. b3 {[%emt 0:02:34]} d4 {[%emt 0:03:15]} 10. e5 {[%emt 0:03:22]} Nd7 {[%emt 0:01:54]} 11. Nf1 {[%emt 0:01:04]} f6 {[%emt 0:02:27]} 12. exf6 {[%emt 0:00:46]} Nxf6 {[%emt 0:00:09]} 13. h4 {[%emt 0:00:39]} Nd5 {[%emt 0:05:06]} 14. Bb2 {[%emt 0:03:23]} Bf6 {[%emt 0:00:39]} 15. N1h2 {[%emt 0:06:49]} e5 {[%emt 0:04:12]} 16. Qd2 {[%emt 0:02:57]} Be6 {[%emt 0:03:40]} 17. c3 {[%emt 0:04:16]} Qd7 {[%emt 0:00:30]} 18. c4 {[%emt 0:02:54]} Nde7 {[%emt 0:01:23]} 19. Ng5 {[%emt 0:03:57]} Bxg5 {[%emt 0:00:29]} 20. Qxg5 {[%emt 0:00:20]} h6 {[%emt 0:00:26]} 21. Qd2 {[%emt 0:06:02]} Bh3 {[%emt 0:02:06]} 22. Qe2 {[%emt 0:07:11]} Bxg2 {[%emt 0:00:35]} 23. Kxg2 {[%emt 0:00:54]} Rae8 {[%emt 0:03:10]} 24. Ba3 {[%emt 0:03:26]} b6 {[%emt 0:00:57]} 25. Nf3 {[%emt 0:09:01]} Nc8 {[%emt 0:00:34]} 26. Qe4 {[%emt 0:01:24]} Re7 {[%emt 0:03:38]} 27. Qd5+ {[%emt 0:03:05]} Qxd5 {[%emt 0:00:23]} 28. cxd5 {[%emt 0:00:06]} Ref7 {[%emt 0:04:08]} 29. dxc6 {[%emt 0:22:04]} Rxf3 {[%emt 0:00:15]} 30. Re2 {[%emt 0:00:38]} Rxd3 {[%emt 0:01:24]} 31. Rae1 {[%emt 0:00:41]} Rdf3 {[%emt 0:00:22]} 32. Rd2 {[%emt 0:08:19]} R3f6 {[%emt 0:05:15]} 33. c7 {[%emt 0:00:00]} R6f7 {[%emt 0:06:00]} 34. Rxe5 {[%emt 0:00:00]} Rxc7 {[%emt 0:00:28]} 35. b4 {[%emt 0:00:00]} cxb4 {[%emt 0:06:53]} 36. Bxb4 {[%emt 0:00:00]} Rd8 {[%emt 0:01:23]} 37. Rd3 {[%emt 0:00:19]} Rc2 {[%emt 0:01:37]} 38. a3 {[%emt 0:00:13]} a5 {[%emt 0:03:35]} 39. Be1 {[%emt 0:00:31]} Kf7 {[%emt 0:05:14]} 40. Re4 {[%emt 0:01:31]} Rc4 {[%emt 0:01:10]} 41. Bd2 {[%emt 0:31:56]} Na7 {[%emt 0:41:07]} 42. Re5 {[%emt 0:03:55]} Kf6 {[%emt 0:02:18]} 43. f4 {[%emt 0:01:41]} a4 {[%emt 0:01:50]} 44. Bb4 {[%emt 0:01:29]} Rd7 {[%emt 0:00:49]} 45. h5 {[%emt 0:03:18]} Nc6 {[%emt 0:01:21]} 46. Rb5 {[%emt 0:00:00]} Nxb4 {[%emt 0:00:00]} 47. axb4 {[%emt 0:00:00]} Rc3 {[%emt 0:00:00]} 48. Rxb6+ {[%emt 0:00:00]} Kf7 {[%emt 0:00:00]} 49. Rxc3 {[%emt 0:00:00]} dxc3 {[%emt 0:00:00]} 50. Rc6 {[%emt 0:00:00]} Rd2+ {[%emt 0:00:00]} 51. Kf3 {[%emt 0:00:00]} a3 {[%emt 0:00:00]} 52. Rxc3 {[%emt 0:00:00]} a2 {[%emt 0:00:00]} 53. Rc7+ {[%emt 0:00:00]} Ke6 {[%emt 0:00:00]} 54. Ra7 {[%emt 0:00:00]} Kd5 {[%emt 0:00:00]} 55. Ke3 {[%emt 0:00:00]} Rg2 {[%emt 0:00:00]} 56. Kf3 {[%emt 0:00:00]} Rb2 {[%emt 0:00:00]} 57. Kg4 {[%emt 0:00:00]} Kc4 {[%emt 0:00:00]} 58. b5 {[%emt 0:00:00]} Kxb5 {[%emt 0:00:00]} 59. Kf5 {[%emt 0:00:00]} Kb4 {[%emt 0:00:00]} 60. g4 {[%emt 0:00:00]} Kb3 {[%emt 0:00:00]} 61. Kg6 {[%emt 0:00:00]} Rg2 {[%emt 0:00:00]} 62. g5 {[%emt 0:00:00]} hxg5 {[%emt 0:00:00]} 63. fxg5 {[%emt 0:00:00]} Rg1 {[%emt 0:00:00]} 64. Ra6 {[%emt 0:00:00]} a1=Q {[%emt 0:00:24]} 65. Rxa1 {[%emt 0:00:00]} Rxa1 {[%emt 0:00:20]} 66. Kxg7 {[%emt 0:00:00]} Ra7+ {[%emt 0:00:12]} 67. Kh6 {[%emt 0:00:00]} Kc4 {[%emt 0:00:11]} 68. g6 {[%emt 0:00:00]} Kd5 {[%emt 0:00:20]} 69. g7 {[%emt 0:00:00]} Ra6+ {[%emt 0:07:16]} 70. Kh7 {[%emt 0:00:00]} Ra7 {[%emt 0:00:25]} 71. Kh8 {[%emt 0:01:17]} 1-0

[Event "DVM U12 2024"]
[Site "Heidelberg"]
[Date "2024.12.28"]
[Round "3"]
[White "Hendler, Maximilian"]
[Black "Atar, Semih Akif"]
[Result "1/2-1/2"]
[ECO "C10"]
[WhiteElo "1644"]
[BlackElo "1624"]
[Annotator "NA RC"]
[PlyCount "100"]
[EventDate "2024.12.23"]
[EventType "team-tourn"]
[EventRounds "7"]
[EventCountry "GER"]
[SourceTitle "playchess.com"]
[Source "ChessBase"]
[SourceQuality "1"]
[TimeControl "40/5400+30:1800+30"]

1. e4 {[%emt 0:00:04]} e6 {[%emt 0:00:05]} 2. d4 {[%emt 0:00:06]} d5 {[%emt 0:00:11]} 3. Nd2 {[%emt 0:00:11]} dxe4 {[%emt 0:00:09]} 4. Nxe4 {[%emt 0:00:18]} Nd7 {[%emt 0:00:21]} 5. Nf3 {[%emt 0:01:46]} Ngf6 {[%emt 0:00:12]} 6. Nxf6+ {[%emt 0:00:23]} Nxf6 {[%emt 0:00:07]} 7. Bb5+ {[%emt 0:02:27]} c6 {[%emt 0:04:03]} 8. Bd3 {[%emt 0:00:24]} Bd6 {[%emt 0:00:45]} 9. Bg5 {[%emt 0:06:57]} h6 {[%emt 0:01:04]} 10. Bd2 {[%emt 0:03:42]} b6 {[%emt 0:02:40]} 11. Ne5 {[%emt 0:10:24]} Qc7 {[%emt 0:01:15]} 12. O-O {[%emt 0:14:23]} Bb7 {[%emt 0:03:16]} 13. Qe2 {[%emt 0:01:09]} h5 {[%emt 0:03:53]} 14. h3 {[%emt 0:10:55]} Nd7 {[%emt 0:04:10]} 15. Bf4 {[%emt 0:01:02]} h4 {[%emt 0:21:56]} 16. Qg4 {[%emt 0:02:40]} Nxe5 {[%emt 0:16:10]} 17. dxe5 {[%emt 0:01:56]} Bxe5 {[%emt 0:00:25]} 18. Bxe5 {[%emt 0:01:40]} Qxe5 {[%emt 0:00:08]} 19. b3 {[%emt 0:01:14]} c5 {[%emt 0:04:25]} 20. Rfe1 {[%emt 0:00:37]} Qf6 {[%emt 0:01:09]} 21. Bc4 {[%emt 0:01:28]} Ke7 {[%emt 0:04:36]} 22. Rad1 {[%emt 0:09:43]} a6 {[%emt 0:01:54]} 23. Rd3 {[%emt 0:08:41]} Rad8 {[%emt 0:10:02]} 24. Bxe6 {[%emt 0:05:41]} Rxd3 {[%emt 0:03:13]} 25. Bc4+ {[%emt 0:01:27]} Re3 {[%emt 0:04:17]} 26. Rxe3+ {[%emt 0:00:19]} Kd8 {[%emt 0:04:23]} 27. Rd3+ {[%emt 0:00:26]} Kc7 {[%emt 0:01:15]} 28. Rd7+ {[%emt 0:00:49]} Kb8 {[%emt 0:00:00]} 29. Rxf7 {[%emt 0:02:48]} Qa1+ {[%emt 0:00:20]} 30. Kh2 {[%emt 0:00:10]} Qe5+ {[%emt 0:00:42]} 31. f4 {[%emt 0:01:03]} Qe4 {[%emt 0:00:53]} 32. Qxg7 {[%emt 0:01:39]} Rh7 {[%emt 0:00:30]} 33. Qg8+ {[%emt 0:00:22]} Ka7 {[%emt 0:00:30]} 34. Rxh7 {[%emt 0:00:13]} Qxf4+ {[%emt 0:00:13]} 35. Kg1 {[%emt 0:01:18]} Qe3+ {[%emt 0:00:50]} 36. Kf1 {[%emt 0:00:44]} Qc1+ {[%emt 0:06:33]} 37. Ke2 {[%emt 0:03:44]} Qxc2+ {[%emt 0:00:07]} 38. Ke3 {[%emt 0:00:58]} Qe4+ {[%emt 0:00:12]} 39. Kd2 {[%emt 0:00:30]} Qd4+ {[%emt 0:00:50]} 40. Ke1 {[%emt 0:02:39]} Qe3+ {[%emt 0:00:18]} 41. Kd1 {[%emt 0:32:30]} Qd4+ {[%emt 0:03:29]} 42. Ke1 {[%emt 0:00:00]} Qe3+ {[%emt 0:01:28]} 43. Kf1 {[%emt 0:00:00]} Qf4+ {[%emt 0:02:58]} 44. Kg1 {[%emt 0:00:00]} Qe3+ {[%emt 0:00:13]} 45. Kf1 {[%emt 0:00:00]} Qf4+ {[%emt 0:00:13]} 46. Ke2 {[%emt 0:00:00]} Qe4+ {[%emt 0:00:24]} 47. Kf2 {[%emt 0:00:00]} Qf4+ {[%emt 0:00:24]} 48. Kg1 {[%emt 0:00:00]} Qe3+ {[%emt 0:00:35]} 49. Kh2 {[%emt 0:00:01]} Qf4+ 50. g3 Qf5 {[%emt 0:00:10]} 1/2-1/2